bitfinex/quotes_BTCUSD_20230117
["timestamp","ask_amount","ask_price","bid_price","bid_amount"]
[1673956744231,3.52895432,21234.0,21233.0,0.001]
[1673956745762,3.32394939,21234.0,21233.0,0.001]
[1673956746007,3.03761544,21234.0,21233.0,0.001]
[1673956747013,3.03761544,21234.0,21233.0,0.00090906]
[1673956747254,3.11241544,21234.0,21233.0,0.00090906]
[1673956747539,3.96521713,21234.0,21233.0,0.00066826]
[1673956747795,4.80683058,21234.0,21233.0,0.00066826]
[1673956748307,6.22029698,21234.0,21233.0,0.00066826]
[1673956749037,5.86333719,21234.0,21233.0,0.00066826]
[1673956749810,5.38718353,21234.0,21233.0,0.00066826]
[1673956750073,3.97371713,21234.0,21233.0,0.00066826]
[1673956750308,3.67371713,21234.0,21233.0,0.00066826]
[1673956750558,5.08718353,21234.0,21233.0,0.00066826]
[1673956750812,4.14987318,21234.0,21233.0,0.00066826]
[1673956751335,3.67371713,21234.0,21233.0,0.00066826]
[1673956752341,3.67371713,21234.0,21233.0,0.10196826]
[1673956752342,1.65303849,21234.0,21233.0,0.10196826]
[1673956752646,1.5420765,21234.0,21233.0,0.10196826]
[1673956752875,1.75703729,21234.0,21233.0,0.10196826]
[1673956753384,0.36805744,21234.0,21233.0,0.00066826]
[1673956753917,1.75649765,21234.0,21233.0,0.00066826]
[1673956753955,1.47444021,21234.0,21233.0,0.00066826]
[1673956754194,1.79528621,21234.0,21233.0,0.00066826]
[1673956755451,1.44270749,21234.0,21233.0,0.00066826]
[1673956757258,1.91364949,21234.0,21233.0,0.00066826]
[1673956757757,2.33678257,21234.0,21233.0,0.00066826]
[1673956758549,1.91364949,21234.0,21233.0,0.00066826]
[1673956759099,2.33678257,21234.0,21233.0,0.00066826]
[1673956759348,1.91364949,21234.0,21233.0,0.00066826]
[1673956764638,3.26604475,21234.0,21233.0,0.00066826]
[1673956765400,2.80772457,21234.0,21233.0,0.00066826]
[1673956766736,1.86584057,21234.0,21233.0,0.00066826]
[1673956766937,1.44270749,21234.0,21233.0,0.00066826]
[1673956768230,1.44270749,21234.0,21233.0,0.00060447]
[1673956768768,1.79546353,21234.0,21233.0,0.00060447]
[1673956769023,1.47461753,21234.0,21233.0,0.00060447]
[1673956769333,1.79546353,21234.0,21233.0,0.00060447]
[1673956769868,1.44270749,21234.0,21233.0,0.00060447]
[1673956770125,2.07761246,21234.0,21233.0,0.00060447]
[1673956770652,1.4745884,21234.0,21233.0,0.00060447]
[1673956770925,1.44270749,21234.0,21233.0,0.00060447]
[1673956771184,1.91364949,21234.0,21230.0,0.41222132]
[1673956771455,0.14109388,21231.0,21230.0,0.41222132]
[1673956772295,0.3527347,21231.0,21230.0,0.41222132]
[1673956773069,0.3527347,21231.0,21229.0,0.54615]
[1673956773375,0.3527347,21231.0,21228.0,0.471055]
[1673956773376,0.673612,21230.0,21228.0,0.471055]
[1673956773659,0.1411064,21230.0,21228.0,0.471055]
[1673956773924,0.1411064,21231.0,21229.0,0.0756]
[1673956774184,0.357766,21231.0,21229.0,0.546646]
[1673956774444,0.1411064,21231.0,21229.0,0.546646]
[1673956774748,0.1411064,21231.0,21229.0,1.017699]
[1673956775284,0.1411064,21231.0,21229.0,1.11230169]
[1673956775534,0.005,21230.0,21229.0,1.11230169]
[1673956775795,0.352766,21231.0,21229.0,1.72008826]
[1673956776030,0.361766,21231.0,21229.0,1.72008826]
[1673956776296,0.1501064,21231.0,21229.0,1.72008826]
[1673956776547,0.1501064,21231.0,21230.0,0.0756]
[1673956776822,0.009,21231.0,21230.0,1.638508]
[1673956777334,0.009,21231.0,21230.0,1.338508]
[1673956777860,0.009,21231.0,21230.0,1.017662]
[1673956778366,0.352766,21232.0,21230.0,1.017662]
[1673956778639,0.01,21231.0,21230.0,0.942062]
[1673956778877,0.01,21231.0,21230.0,1.017562]
[1673956779358,0.352766,21232.0,21230.0,1.017562]
[1673956779669,0.357766,21232.0,21231.0,0.0756]
[1673956780026,0.357766,21232.0,21230.0,0.471031]
[1673956780027,1.32029171,21232.0,21230.0,0.471031]
[1673956780176,1.22450718,21232.0,21229.0,1.32547357]
[1673956780442,0.36271133,21231.0,21229.0,0.85442757]
[1673956780976,0.15108453,21231.0,21229.0,0.85442757]
[1673956781241,0.35271133,21231.0,21229.0,0.85442757]
[1673956781757,0.35271133,21231.0,21229.0,1.32548057]
[1673956782009,0.14108453,21231.0,21229.0,1.32548057]
[1673956782553,0.15008453,21231.0,21229.0,1.32548057]
[1673956782794,0.15008453,21231.0,21230.0,0.4754]
[1673956783046,0.009,21231.0,21230.0,1.638308]
[1673956783298,0.009,21231.0,21230.0,1.338308]
[1673956783807,0.009,21231.0,21230.0,1.017462]
[1673956784066,0.14108453,21231.0,21230.0,1.017462]
[1673956784326,0.15108453,21231.0,21230.0,1.017462]
[1673956784870,0.15108453,21231.0,21230.0,0.942062]
[1673956785153,0.01,21231.0,21230.0,0.942062]
[1673956786416,0.15108453,21231.0,21230.0,0.942062]
[1673956787759,0.2216268,21231.0,21229.0,0.85432757]
[1673956787976,0.46194804,21230.0,21229.0,0.85432757]
[1673956788233,0.14110204,21230.0,21229.0,0.85432757]
[1673956789277,0.36172884,21230.0,21229.0,0.85432757]
[1673956789506,0.36178449,21230.0,21229.0,0.85432757]
[1673956789775,0.36178446,21230.0,21229.0,0.85432757]
[1673956790334,1.16299538,21230.0,21229.0,0.85432757]
[1673956791041,1.43618314,21230.0,21229.0,0.85432757]
[1673956791285,1.44618314,21230.0,21229.0,0.85432757]
[1673956792556,0.36282359,21230.0,21229.0,0.85432757]
[1673956793639,1.44617502,21230.0,21229.0,0.85432757]
[1673956793893,1.44617502,21230.0,21229.0,0.38319425]
[1673956794168,1.33158766,21230.0,21229.0,0.0755]
[1673956794432,2.00516835,21230.0,21229.0,0.0755]
[1673956794929,1.72298059,21230.0,21229.0,0.0755]
[1673956795174,2.00537249,21230.0,21229.0,0.0755]
[1673956795497,1.72298059,21230.0,21227.0,0.546483]
[1673956795691,1.72298059,21230.0,21227.0,0.0754]
[1673956795692,0.320846,21229.0,21227.0,0.0754]
[1673956795945,0.70028753,21228.0,21225.0,0.98689968]
[1673956796200,0.14120306,21227.0,21225.0,1.5709956]
[1673956796458,0.14120306,21228.0,21225.0,1.5709956]
[1673956796707,0.14120306,21227.0,21225.0,1.5709956]
[1673956796959,0.14120306,21227.0,21225.0,1.45802968]
[1673956797178,0.14120306,21227.0,21225.0,1.01993337]
[1673956797457,0.6354047,21229.0,21225.0,1.01993337]
[1673956797458,0.14120306,21228.0,21225.0,1.01993337]
[1673956797969,0.009,21227.0,21225.0,1.01993337]
[1673956798215,0.15020306,21227.0,21225.0,1.01993337]
[1673956798994,0.14120306,21227.0,21225.0,1.01993337]
[1673956799239,0.14120306,21228.0,21225.0,1.01993337]
[1673956799985,0.14120306,21228.0,21226.0,0.075]
[1673956800232,0.14120306,21227.0,21226.0,0.075]
[1673956800767,0.15020306,21228.0,21226.0,0.075]
[1673956801035,0.14120306,21228.0,21226.0,0.075]
[1673956801544,0.15020306,21227.0,21226.0,0.075]
[1673956801803,0.14120306,21227.0,21226.0,0.075]
[1673956802559,0.14120306,21227.0,21226.0,0.21741602]
[1673956802807,0.14120306,21227.0,21226.0,0.075]
[1673956803845,0.97413943,21228.0,21226.0,1.01724]
[1673956803846,0.14120306,21228.0,21226.0,1.01724]
[1673956804108,0.77496597,21229.0,21226.0,1.01724]
[1673956804371,0.009,21227.0,21226.0,1.01724]
[1673956804666,0.009,21227.0,21226.0,1.03525713]
[1673956804909,0.77496597,21229.0,21226.0,1.33525713]
[1673956805183,0.3528644,21229.0,21226.0,1.22598308]
[1673956805450,0.14120306,21229.0,21227.0,0.0756]
[1673956805907,0.3528644,21229.0,21227.0,0.0756]
[1673956805909,0.3528644,21229.0,21227.0,1.017771]
[1673956806424,0.3528644,21229.0,21227.0,1.17622955]
[1673956806683,0.35381625,21230.0,21228.0,0.1509]
[1673956806960,0.00095185,21230.0,21229.0,0.867499]
[1673956807217,0.14120306,21231.0,21229.0,0.546653]
[1673956807465,0.3528644,21231.0,21229.0,0.546653]
[1673956808023,0.6354047,21232.0,21229.0,0.546653]
[1673956808024,0.3528644,21232.0,21229.0,0.546653]
[1673956808275,0.14120306,21232.0,21229.0,0.546653]
[1673956808574,0.09,21231.0,21230.0,0.320846]
[1673956808839,0.14120306,21233.0,21230.0,1.35063206]
[1673956809100,0.85843135,21234.0,21232.0,0.0756]
[1673956809356,0.85843135,21234.0,21233.0,0.396246]
[1673956809627,1.06913358,21234.0,21233.0,0.0754]
[1673956810436,0.86547224,21234.0,21233.0,0.0844]
[1673956810693,1.21833261,21234.0,21233.0,0.0844]
[1673956811700,0.93593052,21234.0,21233.0,0.0844]
[1673956811957,1.07690758,21234.0,21233.0,0.0844]
[1673956812269,0.86524554,21234.0,21233.0,0.555365]
[1673956812507,1.07690688,21234.0,21233.0,0.555365]
[1673956812759,0.86524554,21234.0,21233.0,0.555365]
[1673956813770,0.72426918,21234.0,21233.0,0.555365]
[1673956814295,0.72426918,21234.0,21233.0,0.479965]
[1673956814835,0.72426918,21234.0,21233.0,0.56901342]
[1673956815127,0.72426918,21234.0,21233.0,1.03997842]
[1673956815398,0.72426918,21234.0,21233.0,0.95093]
[1673956817339,0.508,21234.0,21233.0,0.95093]
[1673956817876,0.508,21234.0,21233.0,0.95083976]
[1673956820191,0.508,21234.0,21233.0,1.64728576]
[1673956820981,0.508,21234.0,21233.0,1.34728576]
[1673956822244,0.508,21234.0,21233.0,1.02643976]
[1673956822791,0.508,21234.0,21233.0,0.95083976]
[1673956823313,0.508,21234.0,21233.0,1.05083976]
[1673956823570,0.21574035,21235.0,21234.0,0.40021814]
[1673956823821,0.21574035,21235.0,21234.0,2.11384814]
[1673956824085,0.21574035,21235.0,21234.0,2.03824814]
[1673956824376,0.21574035,21235.0,21234.0,0.941884]
[1673956824634,0.22374035,21235.0,21234.0,0.957884]
[1673956825147,0.22374035,21235.0,21234.0,0.016]
[1673956825975,0.22374035,21235.0,21234.0,0.1117934]
[1673956827195,0.22374035,21235.0,21234.0,0.5827354]
[1673956827764,0.22374035,21235.0,21234.0,1.0536774]
[1673956828028,0.22374035,21235.0,21234.0,1.80053209]
[1673956828295,0.22374035,21235.0,21234.0,2.12137809]
[1673956829319,0.22374035,21235.0,21234.0,1.82137809]
[1673956829565,0.22374035,21235.0,21234.0,2.12137809]
[1673956830076,0.22374035,21235.0,21234.0,2.19687809]
[1673956830586,0.22374035,21235.0,21234.0,1.80108469]
[1673956830843,0.22374035,21235.0,21234.0,1.40473869]
[1673956832855,0.22374035,21235.0,21234.0,1.72558469]
[1673956833646,0.22374035,21235.0,21234.0,0.011]
[1673956833901,0.54458635,21235.0,21234.0,0.011]
[1673956834964,1.77298769,21235.0,21234.0,0.011]
[1673956835229,1.97863029,21235.0,21234.0,0.00990001]
[1673956835491,2.05479022,21235.0,21234.0,0.00990001]
[1673956835760,1.77238813,21235.0,21234.0,0.00990001]
[1673956836539,1.58387022,21235.0,21234.0,0.00990001]
[1673956836832,1.44219091,21235.0,21234.0,0.00990001]
[1673956837144,1.11295022,21235.0,21234.0,0.00990001]
[1673956837375,2.33200875,21235.0,21234.0,0.00990001]
[1673956837627,2.25710875,21235.0,21234.0,0.00990001]
[1673956837894,1.0381486,21235.0,21234.0,0.00990001]
[1673956838171,1.90414276,21235.0,21234.0,0.00990001]
[1673956838788,2.25714537,21235.0,21234.0,0.00990001]
[1673956839046,2.25799252,21235.0,21234.0,0.00990001]
[1673956839570,1.97559043,21235.0,21234.0,0.00990001]
[1673956839837,2.25725894,21235.0,21234.0,0.00990001]
[1673956840100,1.03750267,21235.0,21234.0,0.00990001]
[1673956840908,0.89666133,21235.0,21234.0,0.00990001]
[1673956841175,0.22374035,21235.0,21234.0,0.58214201]
[1673956841433,0.22374035,21235.0,21234.0,0.76323417]
[1673956841692,0.22374035,21235.0,21234.0,0.75823417]
[1673956841941,0.22374035,21235.0,21234.0,0.57714201]
[1673956842265,0.22374035,21235.0,21234.0,0.47584201]
[1673956843477,0.57581533,21235.0,21234.0,0.47584201]
[1673956843732,0.36456752,21235.0,21234.0,0.47584201]
[1673956844244,0.36456752,21235.0,21234.0,0.00490001]
[1673956844509,1.44341457,21235.0,21234.0,0.00490001]
[1673956844809,1.55301396,21235.0,21234.0,0.00490001]
[1673956845034,1.23216796,21235.0,21234.0,0.00490001]
[1673956845284,1.55301396,21235.0,21234.0,0.13781247]
[1673956845543,0.82220226,21235.0,21234.0,0.13781247]
[1673956845790,1.71843469,21235.0,21234.0,0.13781247]
[1673956846032,2.03928069,21235.0,21234.0,0.13781247]
[1673956846304,1.68628406,21235.0,21234.0,0.00490001]
[1673956846555,2.03928667,21235.0,21234.0,0.00490001]
[1673956846777,1.44367992,21235.0,21234.0,0.00490001]
[1673956847030,1.23216601,21235.0,21234.0,0.00490001]
[1673956847282,0.36079478,21235.0,21234.0,0.65585127]
[1673956847533,1.44363356,21235.0,21234.0,0.18490927]
[1673956848569,0.50145818,21235.0,21234.0,0.47584201]
[1673956849110,0.36084667,21235.0,21234.0,0.47584201]
[1673956849613,0.149339,21235.0,21234.0,0.94678401]
[1673956849910,0.21178967,21235.0,21234.0,0.941884]
[1673956850119,0.27078967,21235.0,21234.0,0.942884]
[1673956850371,0.41184665,21235.0,21234.0,1.13003796]
[1673956850637,0.55245818,21235.0,21234.0,0.942884]
[1673956851146,0.41184734,21235.0,21234.0,0.942884]
[1673956851414,0.059282,21235.0,21234.0,1.25873]
[1673956851673,0.059282,21235.0,21234.0,1.47748856]
[1673956852472,0.26995842,21235.0,21234.0,1.47748856]
[1673956852682,0.26995842,21235.0,21234.0,1.77748856]
[1673956852933,0.26995842,21235.0,21234.0,1.47748856]
[1673956853445,0.26995842,21235.0,21234.0,1.25873]
[1673956853731,0.26995842,21235.0,21234.0,0.937884]
[1673956854777,0.26995842,21235.0,21234.0,1.25873]
[1673956855025,0.26995842,21235.0,21234.0,0.937884]
[1673956855278,0.41101609,21235.0,21234.0,0.937884]
[1673956855528,0.26995842,21235.0,21234.0,0.937884]
[1673956856291,0.26995842,21235.0,21234.0,1.55873]
[1673956858083,0.62252376,21235.0,21234.0,0.466942]
[1673956858084,0.62252376,21235.0,21234.0,0.001]
[1673956858085,0.48146609,21235.0,21234.0,0.001]
[1673956858824,1.70531204,21235.0,21234.0,0.001]
[1673956859339,2.02615804,21235.0,21234.0,0.001]
[1673956859585,2.02621048,21235.0,21234.0,0.001]
[1673956859830,2.02620924,21235.0,21234.0,0.001]
[1673956860079,0.48151729,21235.0,21234.0,0.001]
[1673956860328,0.62255378,21235.0,21234.0,0.001]
[1673956860566,0.48151729,21235.0,21234.0,0.001]
[1673956860820,1.70536713,21235.0,21234.0,0.001]
[1673956861071,0.62255446,21235.0,21234.0,0.001]
[1673956862057,0.62255446,21235.0,21234.0,0.471942]
[1673956862310,0.62255446,21235.0,21234.0,1.0640352]
[1673956862571,0.26995842,21235.0,21234.0,1.65535954]
[1673956862844,0.26995842,21235.0,21234.0,1.67620554]
[1673956864195,0.21095842,21235.0,21234.0,1.67520554]
[1673956864692,0.21095842,21235.0,21234.0,1.97520554]
[1673956864944,0.21095842,21235.0,21234.0,1.67520554]
[1673956865258,0.35199559,21235.0,21234.0,1.35435954]
[1673956865525,0.56355446,21235.0,21234.0,0.941884]
[1673956865786,0.56353774,21235.0,21234.0,0.941884]
[1673956866050,0.56353741,21235.0,21234.0,0.941884]
[1673956866313,0.61853741,21235.0,21234.0,0.941884]
[1673956867573,2.32049395,21235.0,21233.0,0.470942]
[1673956867873,0.75130054,21234.0,21233.0,0.470942]
[1673956868083,0.75130054,21234.0,21232.0,0.470971]
[1673956868332,0.53420983,21233.0,21231.0,0.470987]
[1673956868575,0.35439409,21233.0,21232.0,0.470981]
[1673956869332,0.35439409,21233.0,21232.0,0.471981]
[1673956869597,0.35439409,21233.0,21232.0,0.470981]
[1673956869826,0.22336383,21233.0,21232.0,1.4323247]
[1673956870073,0.22336383,21233.0,21232.0,1.4531707]
[1673956870844,0.22336383,21233.0,21232.0,2.26586781]
[1673956871094,0.22336383,21233.0,21232.0,2.26486781]
[1673956871095,0.21336383,21233.0,21232.0,2.26486781]
[1673956871349,0.057,21233.0,21232.0,2.26486781]
[1673956871622,0.27036383,21233.0,21232.0,1.70011111]
[1673956872634,0.27036383,21233.0,21232.0,1.37926511]
[1673956873165,0.27036383,21233.0,21232.0,0.470987]
[1673956873453,0.41139409,21233.0,21232.0,0.470987]
[1673956873715,0.41139409,21233.0,21231.0,0.470994]
[1673956874232,0.41139409,21233.0,21231.0,0.47091612]
[1673956874752,0.62293857,21233.0,21231.0,0.47091612]
[1673956875007,0.56593857,21233.0,21231.0,0.47091612]
[1673956875262,0.56993857,21233.0,21231.0,0.47191612]
[1673956875541,0.56993857,21233.0,21231.0,0.38952136]
[1673956876041,0.14103026,21232.0,21231.0,0.38952136]
[1673956876845,0.56993857,21233.0,21231.0,0.38952136]
[1673956877334,0.14103026,21232.0,21231.0,0.38852136]
[1673956878315,0.15103026,21232.0,21231.0,0.86053036]
[1673956878563,0.0099127,21232.0,21231.0,0.86053036]
[1673956879599,0.25224296,21232.0,21231.0,0.001]
[1673956879893,0.78463344,21232.0,21231.0,0.001]
[1673956880155,0.68333344,21232.0,21231.0,1.47703659]
[1673956880414,0.0099127,21232.0,21231.0,1.85263659]
[1673956880750,0.0099127,21232.0,21231.0,2.17348259]
[1673956881296,0.21336383,21233.0,21231.0,1.87248259]
[1673956881533,0.35439409,21233.0,21231.0,1.33590735]
[1673956881765,0.21336383,21233.0,21231.0,1.33590735]
[1673956882008,0.01,21232.0,21231.0,1.33690735]
[1673956882242,0.1013,21232.0,21230.0,0.47101]
[1673956882487,0.24233026,21232.0,21231.0,0.001]
[1673956882717,0.24233026,21232.0,21231.0,1e-08]
[1673956882950,0.1013,21232.0,21231.0,1e-08]
[1673956883175,0.1013,21232.0,21230.0,0.47101]
[1673956883468,0.14103026,21233.0,21230.0,0.942028]
[1673956884504,0.009,21232.0,21230.0,1.25054198]
[1673956885050,0.009,21232.0,21231.0,0.320846]
[1673956885284,0.01,21233.0,21231.0,0.942018]
[1673956885501,0.14103026,21233.0,21231.0,1.1216922]
[1673956885778,0.009,21232.0,21231.0,1.1216922]
[1673956886033,0.14103026,21233.0,21231.0,1.1216922]
[1673956886291,0.004,21233.0,21231.0,1.1216922]
[1673956886543,0.004,21233.0,21232.0,0.320846]
[1673956886801,0.004,21233.0,21232.0,1.26282]
[1673956887317,0.14103026,21234.0,21232.0,1.26282]
[1673956887556,0.14103026,21234.0,21232.0,1.03498199]
[1673956888099,0.057,21233.0,21232.0,0.941974]
[1673956888422,0.14103026,21234.0,21232.0,0.941974]
[1673956888606,0.44257474,21234.0,21232.0,0.941974]
[1673956889133,0.14103026,21233.0,21232.0,0.941974]
[1673956889385,0.35257474,21233.0,21232.0,0.941974]
[1673956889680,0.14103026,21233.0,21232.0,0.470987]
[1673956889900,0.35257474,21233.0,21232.0,0.470987]
[1673956890177,0.35257474,21233.0,21231.0,0.471009]
[1673956890694,0.40957474,21233.0,21231.0,0.471009]
[1673956890968,0.40957474,21233.0,21230.0,0.77952698]
[1673956890969,0.14103026,21232.0,21230.0,0.77952698]
[1673956891716,0.35257474,21232.0,21230.0,0.77952698]
[1673956892230,0.36157474,21232.0,21230.0,0.77952698]
[1673956893000,0.15003026,21232.0,21230.0,0.77952698]
[1673956893761,1.02637983,21232.0,21229.0,0.471033]
[1673956894026,1.02637983,21232.0,21228.0,0.471059]
[1673956894027,0.14108787,21230.0,21228.0,0.471059]
[1673956894288,0.320846,21229.0,21228.0,0.471059]
[1673956894892,0.14108787,21231.0,21228.0,0.471059]
[1673956895135,0.35263235,21231.0,21228.0,0.471059]
[1673956895392,0.004,21230.0,21228.0,0.471059]
[1673956895648,0.35263235,21231.0,21228.0,0.471059]
[1673956896434,0.14108787,21230.0,21228.0,0.471059]
[1673956897513,0.35263235,21230.0,21227.0,0.471082]
[1673956897764,0.14508787,21230.0,21228.0,0.471075]
[1673956898043,0.35663235,21230.0,21227.0,0.942171]
[1673956898569,0.14108787,21230.0,21227.0,0.942171]
[1673956898867,0.15108787,21230.0,21227.0,0.942171]
[1673956899880,0.41284792,21230.0,21226.0,0.39792644]
[1673956900142,0.67347835,21229.0,21225.0,0.52069341]
[1673956900396,0.82369135,21229.0,21225.0,0.99181941]
[1673956900688,0.61214687,21229.0,21225.0,0.99181941]
[1673956900940,0.61214687,21229.0,21225.0,0.94432837]
[1673956901203,0.62214687,21229.0,21225.0,0.94432837]
[1673956901456,0.61214687,21229.0,21225.0,0.94432837]
[1673956901719,0.8246592,21230.0,21225.0,1.01992837]
[1673956901989,0.004,21229.0,21225.0,1.21065432]
[1673956902244,0.35663235,21229.0,21225.0,1.01992837]
[1673956902506,0.82769435,21229.0,21225.0,0.94432837]
[1673956902815,0.14108787,21228.0,21225.0,0.00207737]
[1673956903543,1.81330357,21229.0,21225.0,0.00207737]
[1673956903808,1.81330357,21229.0,21225.0,0.66394332]
[1673956904135,0.091,21228.0,21225.0,0.66394332]
[1673956904307,1.81330357,21229.0,21225.0,0.47321737]
[1673956904581,0.091,21228.0,21225.0,0.66394332]
[1673956904873,1.81330757,21229.0,21225.0,0.47321737]
[1673956905140,6e-05,21228.0,21225.0,0.47321737]
[1673956905916,6e-05,21228.0,21225.0,0.57859339]
[1673956906186,6e-05,21228.0,21225.0,0.49098205]
[1673956906721,0.09106,21228.0,21225.0,0.39098205]
[1673956907011,0.09063892,21228.0,21225.0,0.39098205]
[1673956907799,0.23172679,21228.0,21225.0,0.39098205]
[1673956908113,0.09063892,21228.0,21225.0,0.39098205]
[1673956908372,0.70280479,21228.0,21225.0,0.39098205]
[1673956909608,0.70280479,21228.0,21224.0,0.47353967]
[1673956909616,0.70280479,21228.0,21224.0,0.94469067]
[1673956909883,0.56171692,21228.0,21224.0,0.94468967]
[1673956910130,0.70280479,21228.0,21224.0,0.94468967]
[1673956910392,0.56171692,21228.0,21224.0,0.94468967]
[1673956910654,0.23172679,21228.0,21224.0,0.94468967]
[1673956910917,1.81332657,21229.0,21224.0,0.94468967]
[1673956911174,0.09,21228.0,21224.0,1.13541562]
[1673956911428,0.09,21228.0,21224.0,0.94468967]
[1673956911973,1.81331957,21229.0,21224.0,0.94468967]
[1673956912197,3.0,21228.0,21224.0,1.13541562]
[1673956912468,0.320846,21227.0,21224.0,0.94468967]
[1673956912701,3.0,21228.0,21224.0,0.94468967]
[1673956912959,3.0,21228.0,21224.0,1.21231402]
[1673956913250,3.0,21228.0,21224.0,0.94468967]
[1673956913747,0.057,21227.0,21224.0,0.94468967]
[1673956914000,3.0,21228.0,21224.0,0.94468967]
[1673956914260,3.09,21228.0,21224.0,0.94468967]
[1673956914757,0.320846,21227.0,21224.0,0.94468967]
[1673956915022,3.09,21228.0,21224.0,0.94468967]
[1673956915282,3.09,21228.0,21224.0,1.13541562]
[1673956915547,3.09,21228.0,21224.0,0.94468967]
[1673956917105,3.561077,21228.0,21224.0,0.94468967]
[1673956917350,0.320846,21227.0,21224.0,0.94468967]
[1673956917615,3.70216487,21228.0,21224.0,0.94468967]
[1673956918129,0.320846,21227.0,21224.0,0.47354467]
[1673956918423,0.320846,21226.0,21224.0,0.00239367]
[1673956918686,0.320846,21225.0,21224.0,0.00239367]
[1673956918953,3.68776287,21228.0,21224.0,0.00239367]
[1673956919215,3.14108787,21228.0,21224.0,0.79724437]
[1673956919470,0.057,21227.0,21224.0,0.79724437]
[1673956919947,3.0,21228.0,21224.0,0.60651842]
[1673956919948,0.004,21225.0,21224.0,0.60651842]
[1673956920229,3.14108787,21228.0,21224.0,0.47355467]
[1673956920451,3.0,21228.0,21224.0,0.94471867]
[1673956920710,3.0,21228.0,21224.0,1.13544462]
[1673956921248,0.01,21225.0,21224.0,1.13544462]
[1673956921502,3.0,21228.0,21224.0,0.94471867]
[1673956921755,3.09,21228.0,21224.0,1.32307217]
[1673956922010,3.09,21228.0,21224.0,0.94471867]
[1673956922296,3.23108787,21228.0,21224.0,0.94471867]
[1673956924372,0.64646387,21227.0,21224.0,0.94471867]
[1673956924642,0.320846,21226.0,21224.0,0.94471867]
[1673956924934,0.64646387,21227.0,21224.0,0.94471867]
[1673956925183,0.85800835,21227.0,21224.0,0.47355767]
[1673956925457,0.320846,21226.0,21224.0,0.47355767]
[1673956925731,0.004,21226.0,21224.0,0.66118962]
[1673956925980,1.32910735,21227.0,21224.0,0.47355767]
[1673956926229,0.320846,21226.0,21224.0,0.47355767]
[1673956926486,1.32910735,21227.0,21224.0,0.47355767]
[1673956926998,0.320846,21226.0,21224.0,0.47355767]
[1673956927244,1.32910735,21227.0,21224.0,0.47355767]
[1673956927546,0.004,21226.0,21224.0,0.47355767]
[1673956928245,1.32910735,21227.0,21224.0,0.47355767]
[1673956928497,1.38610735,21227.0,21224.0,0.47355767]
[1673956928810,0.46193387,21226.0,21224.0,0.47355767]
[1673956928998,0.14508787,21226.0,21224.0,0.47355767]
[1673956929284,0.14466679,21226.0,21224.0,0.47355767]
[1673956929779,0.14466679,21226.0,21224.0,0.19002562]
[1673956930065,0.320846,21225.0,21224.0,0.19002562]
[1673956930294,0.004,21226.0,21224.0,0.66118862]
[1673956930545,1.18801948,21227.0,21224.0,0.47355667]
[1673956931051,0.057,21225.0,21224.0,0.47355667]
[1673956931312,1.46968799,21227.0,21224.0,0.47355667]
[1673956931825,0.53239048,21226.0,21224.0,0.00239367]
[1673956932064,0.320846,21225.0,21224.0,0.08824222]
[1673956932319,1.14004712,21227.0,21224.0,0.08824222]
[1673956932320,0.99858899,21227.0,21224.0,0.08824222]
[1673956932586,0.01,21225.0,21224.0,0.08824222]
[1673956932830,0.00957892,21225.0,21224.0,0.08824222]
[1673956933350,0.21154448,21226.0,21224.0,0.08824222]
[1673956933618,0.26854448,21226.0,21224.0,0.00239367]
[1673956933876,0.320918,21225.0,21224.0,0.00239367]
[1673956934125,0.01,21225.0,21224.0,0.00339367]
[1673956934389,0.1013,21225.0,21224.0,0.00239367]
[1673956934645,1.02731583,21225.0,21224.0,0.00239367]
[1673956934896,3.32073243,21225.0,21224.0,0.00239367]
[1673956935259,3.18873565,21225.0,21224.0,0.00239367]
[1673956935410,3.11343565,21225.0,21224.0,0.00239367]
[1673956935950,2.83129043,21225.0,21221.0,0.39677749]
[1673956936204,1.75734405,21224.0,21221.0,0.58222089]
[1673956936479,0.320918,21223.0,21221.0,0.58222089]
[1673956936735,0.49375921,21224.0,21221.0,0.58222089]
[1673956936987,0.21161109,21224.0,21221.0,0.58222089]
[1673956937241,0.21161109,21224.0,21221.0,0.58322089]
[1673956937242,0.22061109,21224.0,21221.0,0.58322089]
[1673956937497,0.22061109,21224.0,21221.0,0.58222089]
[1673956937498,0.21161109,21224.0,21221.0,0.58222089]
[1673956937800,0.009,21223.0,21222.0,0.08723879]
[1673956938053,0.320918,21223.0,21221.0,0.942444]
[1673956938297,0.50375921,21224.0,21221.0,0.943444]
[1673956938807,0.50375921,21224.0,21221.0,0.47031426]
[1673956939085,0.320918,21223.0,21221.0,0.001]
[1673956939332,0.67358858,21222.0,21220.0,0.00263257]
[1673956939626,0.67358858,21222.0,21221.0,0.001]
[1673956939627,0.21161109,21222.0,21221.0,0.001]
[1673956939845,1.28589521,21222.0,21221.0,0.001]
[1673956940105,1.28589521,21222.0,21220.0,0.00263257]
[1673956940419,0.46198403,21221.0,21220.0,0.00263257]
[1673956940629,1.621306,21221.0,21220.0,0.00263257]
[1673956940902,0.74891342,21221.0,21220.0,0.00263257]
[1673956941152,0.67351636,21221.0,21220.0,0.00263257]
[1673956941409,1.14474736,21221.0,21220.0,0.00263257]
[1673956941659,1.83273628,21221.0,21220.0,0.00263257]
[1673956941915,1.82234561,21221.0,21220.0,0.00263257]
[1673956942173,2.10449373,21221.0,21220.0,0.00263257]
[1673956942429,1.92373628,21221.0,21220.0,0.00263257]
[1673956942697,2.68565945,21221.0,21220.0,0.00263257]
[1673956943000,3.1279355,21221.0,21220.0,0.00263257]
[1673956943240,2.16517684,21221.0,21220.0,0.00263257]
[1673956943519,2.45459544,21221.0,21220.0,0.00263257]
[1673956943772,4.42074445,21221.0,21220.0,0.00263257]
[1673956944022,3.94549342,21221.0,21220.0,0.00263257]
[1673956944292,4.42074897,21221.0,21220.0,0.00263257]
[1673956944546,4.13860085,21221.0,21220.0,0.00236932]
[1673956945056,4.42013523,21221.0,21220.0,0.00236932]
[1673956945868,4.18673829,21221.0,21220.0,0.00236932]
[1673956946129,4.19512058,21221.0,21220.0,0.00236932]
[1673956946389,4.49512058,21221.0,21220.0,0.00236932]
[1673956946646,4.15580511,21221.0,21220.0,0.00236932]
[1673956946912,4.5076024,21221.0,21220.0,0.00236932]
[1673956947972,4.2076024,21221.0,21220.0,0.00236932]
[1673956948276,4.50782947,21221.0,21220.0,0.00236932]
[1673956948533,4.18207695,21221.0,21220.0,0.00236932]
[1673956948782,4.98183472,21221.0,21220.0,0.00236932]
[1673956949058,4.5651581,21221.0,21220.0,0.00236932]